[Event "French-ch U16-U18 2024"]
[Site "Agen"]
[Date "2024.04.17"]
[Round "5.20"]
[White "Marche, Nael"]
[Black "Lesueur, Gabriel"]
[Result "1/2-1/2"]
[ECO "A40"]
[WhiteElo "2057"]
[BlackElo "2235"]
[Annotator "TA"]
[PlyCount "120"]
[EventDate "2024.04.14"]
[EventType "swiss"]
[EventCountry "FRA"]
[SourceTitle "playchess.com"]
[Source "ChessBase"]
[SourceQuality "1"]
[TimeControl "5400+30"]

{[%evp 9,120,48,93,98,97,99,104,25,108,38,88,31,128,48,59,27,30,23,27,-10,-8,-21,-27,-24,-10,-15,-15,-21,-12,-12,-21,-25,-22,-24,-24,-24,-24,-24,-24,-28,0,0,0,0,0,-9,-5,-5,-5,-14,0,0,22,0,0,0,0,-63,0,-6,-7,-7,0,0,0,-3,-3,-10,-10,-10,-10,-10,-10,-10,-10,-10,-10,-10,-10,-10,0,-11,0,-2,0,-6,0,0,0,0,0,0,0,0,0,0,0,-2,-2,-25,0,-35,0,-35,0,-2,0,-2,0,-14,25,0,0]} 1. d4 {[%emt 0:00:08]} g6 {[%emt 0:00:48]} 2. c4 {[%emt 0:00:19]} Bg7 {[%emt 0:00:06]} 3. Nc3 {[%emt 0:00:29]} c5 {[%emt 0:00:12]} 4. d5 {[%emt 0:00:30]} Bxc3+ {[%emt 0:00:06]} 5. bxc3 {[%emt 0:00:06]} e5 {[%emt 0:00:02]} 6. e4 {[%emt 0:01:12]} d6 {[%emt 0:00:03]} 7. Bd3 {[%emt 0:04:07]} Qe7 {[%emt 0:01:22]} 8. Qc2 {[%emt 0:07:25]} ({White should try} 8. Ne2 $16) 8... Nd7 {[%emt 0:00:49]} (8... f5 $1 $11) 9. Be3 {[%emt 0:00:56] White is more active.} (9. Ne2 $16) 9... Ngf6 {[%emt 0:01:20]} (9... f5 $1 $14) 10. h3 {[%emt 0:03:07]} ({Better is} 10. f3 $16) 10... h5 {[%emt 0:10:00]} (10... Nh5 $14) 11. g3 {[%emt 0:10:53]} (11. Nf3 $16) 11... h4 $14 {[%emt 0:20:51]} 12. g4 {[%emt 0:00:08] Dodges Nh5} Nh7 {[%emt 0:00:42] Inhibits Bg5.} 13. Qd2 {[%emt 0:05:57]} g5 {[%emt 0:02:02]} 14. Ne2 {[%emt 0:00:18]} Ndf8 {[%emt 0:01:31]} 15. f3 {[%emt 0:01:24]} Ng6 {[%emt 0:00:11]} 16. Bc2 {[%emt 0:04:28]} Kf8 {[%emt 0:12:45]} 17. O-O {[%emt 0:01:43]} Kg7 {[%emt 0:12:47]} (17... Nf4 {is interesting.} 18. Kh2 b6 19. a4 Kg7) 18. a4 {[%emt 0:01:31]} (18. Kh2 {is more complex.} Nf4 19. a4 Bd7 20. Rfb1) 18... Bd7 {[%emt 0:08:06]} (18... Nf4 {with more complications.} 19. Kh2 Bd7 20. Rfb1 Rhb8) 19. Rfb1 {[%emt 0:00:57]} Rhb8 {[%emt 0:00:26]} (19... Qf6 {seems wilder.} 20. Kg2 Rhb8 21. a5 Nf4+) 20. Rb2 {[%emt 0:01:49]} b6 {[%emt 0:09:36]} (20... Nf4 {looks sharper.} 21. Kh2 Qf6 22. Ng1 Nf8) 21. Kh2 {[%emt 0:12:17]} f6 {[%emt 0:03:30]} 22. Rab1 {[%emt 0:02:51]} (22. Nc1 {feels hotter.} Nf4 23. Qd1 Rb7 24. Rab1) 22... Qd8 {[%emt 0:00:07]} (22... Nf4 {is interesting.} 23. Qd1 Nf8 24. Nc1 N8g6) 23. Qd1 {[%emt 0:00:51]} Nhf8 {[%emt 0:01:03]} (23... Nf4 {seems wilder.} 24. Nc1 Nf8 25. Qf1 Qe8) 24. Nc1 {[%emt 0:05:27]} Qe8 {[%emt 0:00:13]} 25. Nd3 {[%emt 0:00:24]} Nh8 {[%emt 0:00:50]} 26. Ra1 {[%emt 0:03:48]} Nf7 {[%emt 0:02:30]} 27. a5 {[%emt 0:12:28]} b5 {[%emt 0:03:52]} 28. cxb5 {[%emt 0:00:07]} Bxb5 {[%emt 0:00:37]} 29. Ba4 {[%emt 0:00:23]} a6 {[%emt 0:02:09]} (29... Bxa4 {simplifies} 30. Qxa4 Rxb2+ 31. Nxb2 Qxa4 32. Rxa4 Rb8) 30. Bc2 {[%emt 0:03:14]} Ra7 {[%emt 0:02:09]} 31. Rab1 {[%emt 0:00:37][%cal Oc3c4] [#] c4! would now be deadly.} Raa8 {[%emt 0:02:00]} 32. Nc1 {[%emt 0:01:28]} Qd8 {[%emt 0:00:25][%cal Of8g6]} 33. Bd2 {[%emt 0:02:09]} ({White should play} 33. Nb3 $11) 33... Bd7 {[%emt 0:00:40]} (33... Qxa5 34. c4 Qc7 35. cxb5 $18) (33... Ng6 $15) 34. c4 $11 {[%emt 0:00:53]} Rxb2 {[%emt 0:00:08]} 35. Rxb2 {[%emt 0:00:04]} Rb8 {[%emt 0:00:03]} 36. Rxb8 {[%emt 0:00:54]} Qxb8 {[%emt 0:00:01]} 37. Bb3 {[%emt 0:00:12]} Ng6 {[%emt 0:01:49]} 38. Qc2 {[%emt 0:01:24]} Kf8 {[%emt 0:00:53][%cal Bg7f8,Bf8e7,Be7e8,Be8d8,Bd8c7,Bc7b7,Bb7a7,Ba7a8][%mdl 32]} (38... Nf4 {is more complex.} 39. Qa2 Nh8 40. Bc2 Qb7) 39. Ba2 {[%emt 0:00:07]} (39. Qa2 {feels hotter.} Nf4 40. Bc2 Nh8 41. Qb3) 39... Ke7 {[%emt 0:02:00]} 40. Qb3 {[%emt 0:00:05]} (40. Nd3 {with more complications.} Nf4 41. Nc1 Qb7 42. Qb3) 40... Qxb3 {[%emt 0:00:08]} 41. Bxb3 {[%emt 0:00:08]} Nf4 {[%emt 0:00:15]} 42. Bd1 {[%emt 0:03:33]} Ke8 {[%emt 0:00:38]} 43. Bb3 {[%emt 0:00:20]} Kd8 {[%emt 0:00:18]} 44. Bd1 {[%emt 0:00:34]} Kc7 {[%emt 0:00:06]} 45. Bb3 {[%emt 0:00:21]} Kb7 {[%emt 0:00:06]} 46. Bd1 {[%emt 0:01:00]} Ka7 {[%emt 0:00:02]} 47. Bb3 {[%emt 0:00:31]} Nd8 {[%emt 0:00:11]} 48. Bd1 {[%emt 0:00:24]} Nb7 {[%emt 0:00:02]} 49. Bb3 {[%emt 0:00:42]} Be8 {[%emt 0:00:02]} 50. Bd1 {[%emt 0:01:14]} Ka8 {[%emt 0:00:02]} 51. Bb3 {[%emt 0:01:22]} Kb8 {[%emt 0:00:01]} 52. Bd1 {[%emt 0:00:30]} Kc8 {[%emt 0:00:01]} 53. Bb3 {[%emt 0:00:10]} Nd8 {[%emt 0:00:01]} 54. Bd1 {[%emt 0:00:17]} Nb7 {[%emt 0:00:02]} 55. Bb3 {[%emt 0:00:09]} Kb8 {[%emt 0:00:01]} 56. Bd1 {[%emt 0:00:19]} Ka8 {[%emt 0:00:01]} 57. Bb3 {[%emt 0:00:12]} Ka7 {[%emt 0:00:02]} 58. Bd1 {[%emt 0:00:09]} Bd7 {[%emt 0:00:04]} 59. Bb3 {[%emt 0:00:09]} Bb5 {[%emt 0:07:57]} 60. Be1 {[%emt 0:01:42]} Bd7 {[%emt 0:00:46] Weighted Error Value: White=0.11 (very precise) /Black=0.13 (very precise) .  Mistake:       	White=5     	Black=4      Inaccurate:     	White=2     	Black=3      OK:         	White=13    	Black=19     Best:        	---       	Black=1} 1/2-1/2

[Event "French-ch U16-U18 2024"]
[Site "Agen"]
[Date "2024.04.18"]
[Round "6.1"]
[White "Bat, Anu"]
[Black "Paralieu, Emma"]
[Result "0-1"]
[ECO "C62"]
[WhiteElo "1887"]
[BlackElo "1775"]
[Annotator "NA RC COMBH"]
[PlyCount "147"]
[EventDate "2024.04.14"]
[EventType "swiss"]
[EventCountry "FRA"]
[SourceTitle "playchess.com"]
[Source "ChessBase"]
[SourceQuality "1"]
[TimeControl "5400+30"]

1. e4 {[%emt 0:00:04]} e5 {[%emt 0:00:06]} 2. Nf3 {[%emt 0:00:07]} Nc6 {[%emt 0:00:07]} 3. Nc3 {[%emt 0:00:06]} Nf6 {[%emt 0:00:24]} 4. Bb5 {[%emt 0:00:07]} d6 {[%emt 0:01:59]} 5. d4 {[%emt 0:01:56]} exd4 {[%emt 0:03:43]} 6. Nxd4 {[%emt 0:00:15]} Bd7 {[%emt 0:01:42]} 7. Nxc6 {[%emt 0:04:19]} Bxc6 {[%emt 0:02:52]} 8. Bxc6+ {[%emt 0:00:23]} bxc6 {[%emt 0:00:07]} 9. O-O {[%emt 0:04:38]} Nd7 {[%emt 0:07:21]} 10. Qe2 {[%emt 0:05:47]} Qe7 {[%emt 0:08:53]} 11. Qa6 {[%emt 0:02:43]} Nb6 {[%emt 0:17:46]} 12. a4 {[%emt 0:01:42]} Rd8 {[%emt 0:01:14]} 13. a5 {[%emt 0:01:23]} Nc8 {[%emt 0:00:25]} 14. Qxc6+ {[%emt 0:00:32]} Qd7 {[%emt 0:00:14]} 15. Qxd7+ {[%emt 0:00:40]} Kxd7 {[%emt 0:00:27]} 16. Be3 {[%emt 0:02:13]} a6 {[%emt 0:01:56]} 17. Nd5 {[%emt 0:01:32]} Ne7 {[%emt 0:02:35]} 18. b4 {[%emt 0:03:07]} Rb8 {[%emt 0:01:09]} 19. Rfb1 {[%emt 0:00:23]} Nxd5 {[%emt 0:05:52]} 20. exd5 {[%emt 0:00:12]} Be7 {[%emt 0:01:40]} 21. Bd4 {[%emt 0:00:30]} Rhg8 {[%emt 0:01:31]} 22. c4 {[%emt 0:01:15]} c6 {[%emt 0:00:52]} 23. dxc6+ {[%emt 0:00:30]} Kxc6 {[%emt 0:00:04]} 24. Ra2 {[%emt 0:01:40]} Bd8 {[%emt 0:05:45]} 25. b5+ {[%emt 0:02:16]} Kd7 {[%emt 0:02:24]} 26. Raa1 {[%emt 0:07:35]} Ra8 {[%emt 0:09:34]} 27. b6 {[%emt 0:07:09]} Rb8 {[%emt 0:00:58]} 28. c5 {[%emt 0:04:50]} dxc5 {[%emt 0:01:30]} 29. Bxc5 {[%emt 0:00:10]} Bf6 {[%emt 0:00:18]} 30. Ra2 {[%emt 0:03:59]} Rgc8 {[%emt 0:03:47]} 31. Be3 {[%emt 0:00:47]} Rc4 {[%emt 0:01:22]} 32. g3 {[%emt 0:01:47]} Kc6 {[%emt 0:03:47]} 33. Ra3 {[%emt 0:05:28]} Rb7 {[%emt 0:03:09]} 34. Kg2 {[%emt 0:00:55]} Rd7 {[%emt 0:03:00]} 35. Kf3 {[%emt 0:02:05]} Kb7 {[%emt 0:00:36]} 36. Rc1 {[%emt 0:01:24]} Rxc1 {[%emt 0:00:03]} 37. Bxc1 {[%emt 0:00:07]} Rd5 {[%emt 0:00:11]} 38. Be3 {[%emt 0:02:27]} Rb5 {[%emt 0:05:15]} 39. Bd2 {[%emt 0:02:05]} Rd5 {[%emt 0:01:26]} 40. Ke2 {[%emt 0:00:45]} Kc6 {[%emt 0:01:34]} 41. Rb3 {[%emt 0:00:38]} Rd7 {[%emt 0:01:21]} 42. Rb1 {[%emt 0:00:54]} Bd4 {[%emt 0:01:26]} 43. Rc1+ {[%emt 0:00:27]} Kb7 {[%emt 0:00:09]} 44. Rc4 {[%emt 0:01:13]} Bxf2 {[%emt 0:00:50]} 45. Bc3 {[%emt 0:01:54]} Bg1 {[%emt 0:00:45]} 46. h3 {[%emt 0:01:13]} f6 {[%emt 0:00:28]} 47. Kf3 {[%emt 0:03:18]} h6 {[%emt 0:00:33]} 48. h4 {[%emt 0:02:05]} h5 {[%emt 0:00:28]} 49. Bb4 {[%emt 0:01:09]} Bd4 {[%emt 0:00:41]} 50. Ke4 {[%emt 0:03:52]} Be5 {[%emt 0:00:12]} 51. Be1 {[%emt 0:00:35]} g6 {[%emt 0:00:25]} 52. Bc3 {[%emt 0:03:31]} Bxg3 {[%emt 0:00:27]} 53. Bxf6 {[%emt 0:00:17]} Rf7 {[%emt 0:00:37]} 54. Bg5 {[%emt 0:00:30]} Be1 {[%emt 0:00:38]} 55. Rc5 {[%emt 0:00:42]} Rd7 {[%emt 0:00:36]} 56. Bf6 {[%emt 0:02:08]} Bd2 {[%emt 0:00:18]} 57. Kf3 {[%emt 0:05:58]} Rf7 {[%emt 0:00:25]} 58. Ke2 {[%emt 0:00:08]} Bxa5 {[%emt 0:00:30]} 59. Ba1 {[%emt 0:00:55]} Bxb6 {[%emt 0:00:16]} 60. Rg5 {[%emt 0:00:08]} Bf2 {[%emt 0:00:19]} 61. Rxg6 {[%emt 0:00:12]} Bxh4 {[%emt 0:00:03]} 62. Rh6 {[%emt 0:00:22]} Rf5 {[%emt 0:01:07]} 63. Bd4 {[%emt 0:00:16]} Rd5 {[%emt 0:00:38]} 64. Be3 {[%emt 0:00:43]} Bd8 {[%emt 0:00:40]} 65. Rh7+ {[%emt 0:00:09]} Kc6 {[%emt 0:00:15]} 66. Ra7 {[%emt 0:00:24]} a5 {[%emt 0:00:19]} 67. Bd2 {[%emt 0:00:49]} h4 {[%emt 0:00:22]} 68. Bc3 {[%emt 0:00:51]} Bc7 {[%emt 0:00:28]} 69. Ra6+ {[%emt 0:00:24]} Kb5 {[%emt 0:00:14]} 70. Rh6 {[%emt 0:00:15]} Bg3 {[%emt 0:00:23]} 71. Kf1 {[%emt 0:00:41]} a4 {[%emt 0:00:15]} 72. Rh8 {[%emt 0:01:33]} Kc4 {[%emt 0:01:13]} 73. Bf6 {[%emt 0:00:30]} Rf5+ {[%emt 0:00:10]} 74. Ke2 {[%emt 0:08:53]} 0-1

[Event "French-ch U16-U18 2024"]
[Site "Agen"]
[Date "2024.04.18"]
[Round "6.2"]
[White "Pereira-Davoine, Alana"]
[Black "Lavilledieu, Lily-Mei"]
[Result "1-0"]
[ECO "D52"]
[WhiteElo "1780"]
[BlackElo "1783"]
[Annotator "NA RC COMBH"]
[PlyCount "65"]
[EventDate "2024.04.14"]
[EventType "swiss"]
[EventCountry "FRA"]
[SourceTitle "playchess.com"]
[Source "ChessBase"]
[SourceQuality "1"]
[TimeControl "5400+30"]

1. d4 {[%emt 0:00:02]} d5 {[%emt 0:00:10]} 2. c4 {[%emt 0:00:06]} e6 {[%emt 0:00:06]} 3. Nc3 {[%emt 0:00:05]} Nf6 {[%emt 0:00:05]} 4. Bg5 {[%emt 0:00:23]} c6 {[%emt 0:00:12]} 5. e3 {[%emt 0:01:02]} Nbd7 {[%emt 0:00:12]} 6. Nf3 {[%emt 0:00:55]} Qa5 {[%emt 0:00:36]} 7. Nd2 {[%emt 0:00:41]} dxc4 {[%emt 0:03:01]} 8. Bxf6 {[%emt 0:00:19]} Nxf6 {[%emt 0:01:00]} 9. Nxc4 {[%emt 0:00:47]} Qd8 {[%emt 0:06:30]} 10. Bd3 {[%emt 0:06:27]} Be7 {[%emt 0:01:21]} 11. O-O {[%emt 0:00:28]} O-O {[%emt 0:00:04]} 12. Ne5 {[%emt 0:02:15]} c5 {[%emt 0:11:42]} 13. Ne4 {[%emt 0:08:02]} cxd4 {[%emt 0:15:36]} 14. exd4 {[%emt 0:01:22]} Qb6 {[%emt 0:01:21]} 15. Rc1 {[%emt 0:27:40]} Qxb2 {[%emt 0:13:49]} 16. Rc7 {[%emt 0:03:04]} Nd5 {[%emt 0:14:03]} 17. Rxe7 {[%emt 0:28:10]} Nxe7 {[%emt 0:00:42]} 18. Qh5 {[%emt 0:00:45]} Nf5 {[%emt 0:18:15]} 19. Ng5 {[%emt 0:01:08]} h6 {[%emt 0:07:25]} 20. Ngxf7 {[%emt 0:00:51]} Rxf7 {[%emt 0:03:10]} 21. Qxf7+ {[%emt 0:00:32]} Kh7 {[%emt 0:00:45]} 22. Bxf5+ {[%emt 0:01:01]} exf5 {[%emt 0:00:18]} 23. Qg6+ {[%emt 0:00:59]} Kg8 {[%emt 0:00:43]} 24. Qe8+ {[%emt 0:00:09]} Kh7 {[%emt 0:00:13]} 25. d5 {[%emt 0:00:22]} b6 {[%emt 0:01:01]} 26. d6 {[%emt 0:00:52]} Bb7 {[%emt 0:00:27]} 27. Qg6+ {[%emt 0:01:04]} Kg8 {[%emt 0:00:19]} 28. Qf7+ {[%emt 0:00:07]} Kh7 {[%emt 0:00:33]} 29. Qxb7 {[%emt 0:00:16]} Rf8 {[%emt 0:00:16]} 30. Qe7 {[%emt 0:00:32]} Ra8 {[%emt 0:00:28]} 31. d7 {[%emt 0:00:25]} Qd4 {[%emt 0:00:56]} 32. Nf7 {[%emt 0:00:41]} Qf6 {[%emt 0:00:33]} 33. Qxf6 {[%emt 0:00:06]} 1-0

[Event "French-ch U16-U18 2024"]
[Site "Agen"]
[Date "2024.04.18"]
[Round "6.3"]
[White "Chevillon, Manon"]
[Black "Fesigny, Oceane"]
[Result "0-1"]
[ECO "C54"]
[WhiteElo "1737"]
[BlackElo "1829"]
[Annotator "NA RC COMBH"]
[PlyCount "64"]
[EventDate "2024.04.14"]
[EventType "swiss"]
[EventCountry "FRA"]
[SourceTitle "playchess.com"]
[Source "ChessBase"]
[SourceQuality "1"]
[TimeControl "5400+30"]

1. e4 {[%emt 0:00:05]} e5 {[%emt 0:00:10]} 2. Nf3 {[%emt 0:00:15]} Nc6 {[%emt 0:00:08]} 3. Bc4 {[%emt 0:00:17]} Bc5 {[%emt 0:00:24]} 4. d3 {[%emt 0:00:43]} Nf6 {[%emt 0:00:42]} 5. c3 {[%emt 0:01:09]} d6 {[%emt 0:03:05]} 6. O-O {[%emt 0:02:34]} Bg4 {[%emt 0:06:36]} 7. Re1 {[%emt 0:05:18]} Bb6 {[%emt 0:06:13]} 8. Nbd2 {[%emt 0:08:11]} O-O {[%emt 0:12:28]} 9. Nf1 {[%emt 0:07:11]} Ne7 {[%emt 0:06:15]} 10. Ng3 {[%emt 0:12:10]} Ng6 {[%emt 0:04:42]} 11. h3 {[%emt 0:03:34]} Bd7 {[%emt 0:20:58]} 12. Bb3 {[%emt 0:11:13]} c6 {[%emt 0:19:43]} 13. d4 {[%emt 0:44:20]} h6 {[%emt 0:07:42]} 14. Qc2 {[%emt 0:00:00]} Qc8 {[%emt 0:04:43]} 15. Nf5 {[%emt 0:00:00]} Bxf5 {[%emt 0:03:26]} 16. exf5 {[%emt 0:00:00]} Nf4 {[%emt 0:00:35]} 17. dxe5 {[%emt 0:00:00]} dxe5 {[%emt 0:00:05]} 18. Nxe5 {[%emt 0:00:00]} N4d5 {[%emt 0:00:16]} 19. Bd2 {[%emt 0:00:00]} Bc7 {[%emt 0:01:03]} 20. Nf3 {[%emt 0:00:00]} a5 {[%emt 0:00:38]} 21. a4 {[%emt 0:00:00]} Qb8 {[%emt 0:00:32]} 22. Nd4 {[%emt 0:00:00]} Bf4 {[%emt 0:00:29]} 23. Re2 {[%emt 0:01:06]} Qc7 {[%emt 0:00:30]} 24. Rae1 {[%emt 0:01:02]} Bxd2 {[%emt 0:01:07]} 25. Qxd2 {[%emt 0:00:54]} Rae8 {[%emt 0:00:00]} 26. Bxd5 {[%emt 0:01:02]} cxd5 {[%emt 0:00:21]} 27. Nb5 {[%emt 0:01:18]} Qc6 {[%emt 0:00:32]} 28. Re7 {[%emt 0:01:29]} Ne4 {[%emt 0:00:24]} 29. Rc7 {[%emt 0:00:36]} Nxd2 {[%emt 0:00:16]} 30. Rxe8 {[%emt 0:00:30]} Qxe8 {[%emt 0:00:15]} 31. Rxb7 {[%emt 0:00:27]} Qe1+ {[%emt 0:00:14]} 32. Kh2 {[%emt 0:00:04]} Qxf2 {[%emt 0:00:11]} 0-1

[Event "French-ch U16-U18 2024"]
[Site "Agen"]
[Date "2024.04.18"]
[Round "6.4"]
[White "Delmouly, Manon"]
[Black "Grisoni, Emma"]
[Result "1-0"]
[ECO "A46"]
[WhiteElo "1800"]
[BlackElo "1704"]
[Annotator "NA RC COMBH"]
[PlyCount "57"]
[EventDate "2024.04.14"]
[EventType "swiss"]
[EventCountry "FRA"]
[SourceTitle "playchess.com"]
[Source "ChessBase"]
[SourceQuality "1"]
[TimeControl "5400+30"]

1. d4 {[%emt 0:00:03]} Nf6 {[%emt 0:00:07]} 2. Nf3 {[%emt 0:00:10]} e6 {[%emt 0:00:05]} 3. Bg5 {[%emt 0:00:17]} h6 {[%emt 0:03:44]} 4. Bh4 {[%emt 0:00:44]} g5 {[%emt 0:09:08]} 5. Bg3 {[%emt 0:00:29]} Nh5 {[%emt 0:03:19]} 6. e3 {[%emt 0:02:10]} Nxg3 {[%emt 0:01:29]} 7. hxg3 {[%emt 0:00:12]} d6 {[%emt 0:01:22]} 8. c4 {[%emt 0:02:02]} Nd7 {[%emt 0:00:54]} 9. Nc3 {[%emt 0:01:16]} b6 {[%emt 0:00:30]} 10. Bd3 {[%emt 0:13:31]} Bb7 {[%emt 0:00:30]} 11. Be4 {[%emt 0:00:38]} Bxe4 {[%emt 0:04:12]} 12. Nxe4 {[%emt 0:00:52]} Bg7 {[%emt 0:07:41]} 13. Qc2 {[%emt 0:06:19]} Qe7 {[%emt 0:01:30]} 14. O-O-O {[%emt 0:03:25]} O-O-O {[%emt 0:02:54]} 15. Qa4 {[%emt 0:01:38]} Kb7 {[%emt 0:11:42]} 16. Rd3 {[%emt 0:05:39]} Nb8 {[%emt 0:01:26]} 17. Ra3 {[%emt 0:03:10]} a6 {[%emt 0:00:56]} 18. Kb1 {[%emt 0:11:18]} Qd7 {[%emt 0:01:34]} 19. Qc2 {[%emt 0:03:59]} d5 {[%emt 0:09:27]} 20. cxd5 {[%emt 0:05:35]} Qxd5 {[%emt 0:03:37]} 21. Rc1 {[%emt 0:01:49]} Qd7 {[%emt 0:02:53]} 22. Rb3 {[%emt 0:04:29]} Qc8 {[%emt 0:05:45]} 23. Nc5+ {[%emt 0:10:04]} Ka7 {[%emt 0:00:20]} 24. Na4 {[%emt 0:00:34]} b5 {[%emt 0:19:33]} 25. Qxc7+ {[%emt 0:01:17]} Qb7 {[%emt 0:00:23]} 26. Qc5+ {[%emt 0:01:31]} Ka8 {[%emt 0:00:24]} 27. Nb6+ {[%emt 0:00:10]} Ka7 {[%emt 0:00:14]} 28. Nd5+ {[%emt 0:00:11]} Ka8 {[%emt 0:01:44]} 29. Nc7+ {[%emt 0:00:08]} 1-0

[Event "French-ch U16-U18 2024"]
[Site "Agen"]
[Date "2024.04.18"]
[Round "6.5"]
[White "Sarishvili, Mariam"]
[Black "Sumarriva Paulin, Jade"]
[Result "1-0"]
[ECO "C00"]
[WhiteElo "1719"]
[BlackElo "1780"]
[Annotator "NA RC COMBH"]
[PlyCount "77"]
[EventDate "2024.04.14"]
[EventType "swiss"]
[EventCountry "FRA"]
[SourceTitle "playchess.com"]
[Source "ChessBase"]
[SourceQuality "1"]
[TimeControl "5400+30"]

1. Nf3 {[%emt 0:00:08]} d5 {[%emt 0:00:18]} 2. g3 {[%emt 0:00:09]} Nf6 {[%emt 0:00:14]} 3. d3 {[%emt 0:00:06]} e6 {[%emt 0:00:20]} 4. Bg2 {[%emt 0:00:05]} Be7 {[%emt 0:00:43]} 5. Nbd2 {[%emt 0:00:14]} O-O {[%emt 0:00:31]} 6. e4 {[%emt 0:00:24]} c5 {[%emt 0:02:45]} 7. O-O {[%emt 0:00:59]} Nc6 {[%emt 0:00:48]} 8. c3 {[%emt 0:05:29]} h6 {[%emt 0:15:21]} 9. e5 {[%emt 0:03:33]} Nh7 {[%emt 0:01:20]} 10. d4 {[%emt 0:03:27]} b5 {[%emt 0:07:41]} 11. h3 {[%emt 0:02:51]} a5 {[%emt 0:20:46]} 12. dxc5 {[%emt 0:05:44]} Qc7 {[%emt 0:15:10]} 13. Re1 {[%emt 0:04:22]} Bxc5 {[%emt 0:01:12]} 14. Nb3 {[%emt 0:02:26]} Bb6 {[%emt 0:03:03]} 15. Nbd4 {[%emt 0:03:17]} Ba6 {[%emt 0:03:06]} 16. Nxc6 {[%emt 0:01:36]} Qxc6 {[%emt 0:00:07]} 17. Be3 {[%emt 0:02:19]} f6 {[%emt 0:09:23]} 18. Nd4 {[%emt 0:02:32]} Qd7 {[%emt 0:00:07]} 19. Qg4 {[%emt 0:03:35]} f5 {[%emt 0:12:10]} 20. Qg6 {[%emt 0:04:22]} Bxd4 {[%emt 0:00:32]} 21. cxd4 {[%emt 0:00:16]} Kh8 {[%emt 0:00:32]} 22. Kh2 {[%emt 0:01:44]} Rf7 {[%emt 0:01:14]} 23. f4 {[%emt 0:01:21]} Nf8 {[%emt 0:00:48]} 24. Qh5 {[%emt 0:00:06]} Kh7 {[%emt 0:01:55]} 25. g4 {[%emt 0:05:21]} g6 {[%emt 0:01:25]} 26. Qh4 {[%emt 0:00:07]} Qe8 {[%emt 0:00:59]} 27. Bf3 {[%emt 0:02:24]} Rg7 {[%emt 0:00:13]} 28. Rg1 {[%emt 0:03:07]} Qf7 {[%emt 0:00:47]} 29. Rg2 {[%emt 0:02:31]} Nd7 {[%emt 0:00:20]} 30. Rag1 {[%emt 0:00:54]} Rag8 {[%emt 0:00:16]} 31. g5 {[%emt 0:02:58]} Rh8 {[%emt 0:00:51]} 32. gxh6 {[%emt 0:04:09]} Rgg8 {[%emt 0:00:49]} 33. Bh5 {[%emt 0:03:36]} Nf8 {[%emt 0:00:39]} 34. Bd2 {[%emt 0:03:54]} b4 {[%emt 0:00:06]} 35. a3 {[%emt 0:00:11]} bxa3 {[%emt 0:00:36]} 36. bxa3 {[%emt 0:00:07]} Qc7 {[%emt 0:00:45]} 37. Qf6 {[%emt 0:05:46]} Kxh6 {[%emt 0:00:36]} 38. Rxg6+ {[%emt 0:00:51]} Nxg6 {[%emt 0:00:25]} 39. Rxg6+ {[%emt 0:00:04]} 1-0

[Event "French-ch U16-U18 2024"]
[Site "Agen"]
[Date "2024.04.18"]
[Round "6.6"]
[White "Trevisiol, Antoine"]
[Black "Kuhn, Clement"]
[Result "1/2-1/2"]
[ECO "A42"]
[WhiteElo "2235"]
[BlackElo "2349"]
[Annotator "TA"]
[PlyCount "86"]
[EventDate "2024.04.14"]
[EventType "swiss"]
[EventCountry "FRA"]
[SourceTitle "playchess.com"]
[Source "ChessBase"]
[SourceQuality "1"]
[TimeControl "5400+30"]

{[%evp 9,86,33,47,26,28,29,37,38,94,86,75,65,73,66,66,68,80,62,82,36,70,58,69,60,58,63,85,52,50,50,65,52,86,0,0,0,6,0,9,-16,-16,-14,0,0,0,-8,0,-5,-12,-29,0,0,0,0,0,0,13,0,0,0,0,0,0,0,0,0,0,0,0,0,0,0,0,0,0,0,0,0,0]} 1. Nf3 {[%emt 0:00:05]} g6 {[%emt 0:00:46]} 2. c4 {[%emt 0:01:05]} Bg7 {[%emt 0:00:05]} 3. d4 {[%emt 0:00:43]} d6 {[%emt 0:00:05]} 4. Nc3 {[%emt 0:00:39]} c5 {[%emt 0:00:17]} 5. e4 {[%emt 0:05:03]} Bg4 {[%emt 0:00:53]} 6. d5 {[%emt 0:03:21]} Bxc3+ {[%emt 0:01:27]} 7. bxc3 {[%emt 0:00:10]} Nf6 {[%emt 0:00:50]} 8. Qa4+ {[%emt 0:04:32] White is slightly better.} Bd7 {[%emt 0:12:53]} ({Black should try} 8... Qd7 $14 9. Qxd7+ Nbxd7) 9. Qc2 {[%emt 0:07:06]} Qa5 {[%emt 0:00:09]} 10. Bd3 {[%emt 0:06:14]} Ba4 {[%emt 0:12:47]} 11. Qb2 {[%emt 0:05:03]} Nbd7 {[%emt 0:00:08]} 12. O-O {[%emt 0:03:00]} (12. Qxb7 $2 Rb8 $19 (12... Qxc3+ 13. Bd2 $16) (12... Qxc3+ 13. Bd2 $16)) 12... O-O-O {[%emt 0:10:28]} 13. Rb1 {[%emt 0:13:05]} Qa6 {[%emt 0:00:42]} 14. Qe2 {[%emt 0:00:48]} (14. Re1 $16) 14... h6 {[%emt 0:09:19]} 15. e5 {[%emt 0:09:12]} dxe5 {[%emt 0:06:17]} 16. Nxe5 {[%emt 0:00:23]} Nxe5 {[%emt 0:00:21]} 17. Qxe5 {[%emt 0:00:14][%cal Oc1f4] [#] Strongly threatening Bf4!} Qd6 $1 {[%emt 0:00:50]} ({But not} 17... Nxd5 $2 18. cxd5 Qd6 19. Qe4 $18) 18. Bf4 {[%emt 0:13:08] Hoping for Qe3. White is more active.} Nh5 {[%emt 0:10:53]} 19. Qxd6 {[%emt 0:01:54]} (19. Qxh8 Nxf4 20. Qxh6 e6 $16 (20... Nxd3 $2 {loses.} 21. Qh3+ Bd7 22. Qxd3 $18)) 19... exd6 {[%emt 0:00:07]} 20. Bd2 {[%emt 0:00:22]} Nf6 {[%emt 0:05:48]} 21. h3 {[%emt 0:04:27]} (21. Rfe1 $16) 21... Rde8 $11 {[%emt 0:01:52]} 22. Rbe1 {[%emt 0:00:36]} h5 {[%emt 0:07:16]} 23. f4 {[%emt 0:04:33]} Nd7 {[%emt 0:02:14]} 24. g3 {[%emt 0:01:36]} Kd8 {[%emt 0:04:40]} 25. Kg2 {[%emt 0:02:07]} a6 {[%emt 0:00:52]} 26. g4 {[%emt 0:03:01]} hxg4 {[%emt 0:00:07]} 27. hxg4 {[%emt 0:00:16]} Rxe1 {[%emt 0:00:18]} 28. Rxe1 {[%emt 0:00:20]} Re8 {[%emt 0:01:13]} 29. Rb1 {[%emt 0:02:41] [#]} Bc2 $1 {[%emt 0:02:54]} 30. Bxc2 {[%emt 0:01:24] The position is equal.} Re2+ {[%emt 0:00:01]} 31. Kf3 {[%emt 0:00:40]} Rxd2 {[%emt 0:00:01][%mdl 4096] Endgame. KRB-KRN} 32. Ba4 {[%emt 0:04:26]} Rd3+ {[%emt 0:02:43]} 33. Ke4 {[%emt 0:01:40]} Rxc3 {[%emt 0:00:05]} 34. Bxd7 {[%emt 0:00:10]} (34. Rxb7 $2 Nf6#) 34... Rxc4+ {[%emt 0:00:08]} 35. Ke3 {[%emt 0:00:11]} Kxd7 {[%emt 0:00:04]} 36. Rxb7+ {[%emt 0:00:06] KR-KR} Ke8 {[%emt 0:00:07]} 37. Rb8+ {[%emt 0:00:24]} Ke7 {[%emt 0:03:20][%cal Og6g5]} 38. Rb7+ {[%emt 0:00:07]} Kf8 {[%emt 0:00:04][%cal Og6g5]} 39. Rb8+ {[%emt 0:01:21]} Kg7 {[%emt 0:01:05]} 40. Rb6 {[%emt 0:00:35][%csl LRa6,LRd6]} Rc3+ {[%emt 0:00:05]} 41. Ke4 {[%emt 0:00:29]} Rc4+ {[%emt 0:03:27]} 42. Ke3 {[%emt 0:00:06]} Rc3+ {[%emt 0:01:17]} 43. Ke4 {[%emt 0:00:22]} Rc4+ {[%emt 0:00:51] Weighted Error Value: White=0.09 (flawless) /Black=0.07 (flawless) .  Mistake:       	White=2     	Black=1      Inaccurate:     	White=1     	Black=3      OK:         	White=22    	Black=18     Best:        	---       	Black=2      Strong:       	---       	Black=1} 1/2-1/2